fUSD/lending_fUSD_20260226
["ID","MTS","AMOUNT","RATE_DAILY","PERIOD"]
[406692742,1772087437975,-1078.40932586,0.00010727,2]
[406692743,1772087437984,-1078.40932586,0.00010727,2]
[406692744,1772087437994,-1078.40932586,0.00010727,2]
[406692745,1772087438007,-1078.40932586,0.00010727,2]
[406692746,1772087438017,-1078.40932586,0.00010727,2]
[406692747,1772087438027,-1078.40932586,0.00010727,2]
[406692748,1772087438038,-1078.40932586,0.00010727,2]
[406692749,1772087438047,-1078.40932586,0.00010727,2]
[406692750,1772087438056,-1078.40932586,0.00010727,2]
[406692751,1772087438065,-1078.40932586,0.00010727,2]
[406692752,1772087438074,-1078.40932586,0.00010727,2]
[406692753,1772087438083,-1078.40932586,0.00010727,2]
[406692754,1772087438093,-1078.40932586,0.00010727,2]
[406692755,1772087438103,-1078.40932586,0.00010727,2]
[406692756,1772087438114,-1078.40932586,0.00010727,2]
[406692757,1772087438124,-1078.40932586,0.00010727,2]
[406692758,1772087438133,-1078.40932586,0.00010727,2]
[406692759,1772087438143,-1078.40932586,0.00010727,2]
[406692760,1772087438153,-1078.40932586,0.00010727,2]
[406692762,1772087438163,-1078.40932586,0.00010727,2]
[406692763,1772087438172,-1078.40932586,0.00010727,2]
[406692765,1772087438181,-1078.40932586,0.00010727,2]
[406692767,1772087438190,-1078.40932586,0.00010727,2]
[406692769,1772087438200,-1078.40932586,0.00010727,2]
[406692771,1772087438210,-1078.40932586,0.00010727,2]
[406692773,1772087438220,-1078.40932586,0.00010727,2]
[406692775,1772087438229,-1078.40932586,0.00010727,2]
[406692777,1772087438238,-1078.40932586,0.00010727,2]
[406692779,1772087438248,-1078.40932586,0.00010727,2]
[406692781,1772087438257,-1078.40932586,0.00010727,2]
[406692783,1772087438266,-1078.40932586,0.00010727,2]
[406692785,1772087438275,-249.64244734,0.00010727,2]
[406692787,1772087438284,-1070.11386951,0.00010727,2]
[406692789,1772087438293,-1070.11386951,0.00010727,2]
[406692791,1772087438302,-1070.11386951,0.00010727,2]
[406692793,1772087438311,-1070.11386951,0.00010727,2]
[406692795,1772087438320,-1070.11386951,0.00010727,2]
[406692797,1772087438329,-1070.11386951,0.00010727,2]
[406692799,1772087438338,-1070.11386951,0.00010727,2]
[406692801,1772087438347,-1070.11386951,0.00010727,2]
[406692803,1772087438356,-1070.11386951,0.00010727,2]
[406692805,1772087438365,-1070.11386951,0.00010727,2]
[406692807,1772087438375,-1070.11386951,0.00010727,2]
[406692809,1772087438385,-1070.11386951,0.00010727,2]
[406692811,1772087438394,-1070.11386951,0.00010727,2]
[406692812,1772087438403,-1070.11386951,0.00010727,2]
[406692813,1772087438412,-1070.11386951,0.00010727,2]
[406692814,1772087438422,-1070.11386951,0.00010727,2]
[406692816,1772087438431,-1070.11386951,0.00010727,2]
[406692818,1772087438440,-1070.11386951,0.00010727,2]
[406692820,1772087438449,-1070.11386951,0.00010727,2]
[406692822,1772087438458,-1070.11386951,0.00010727,2]
[406692823,1772087438468,-1070.11386951,0.00010727,2]
[406692824,1772087438477,-1070.11386951,0.00010727,2]
[406692825,1772087438487,-1070.11386951,0.00010727,2]
[406692826,1772087438496,-1070.11386951,0.00010727,2]
[406692827,1772087438506,-1070.11386951,0.00010727,2]
[406692828,1772087438515,-1070.11386951,0.00010727,2]
[406692829,1772087438525,-1070.11386951,0.00010727,2]
[406692830,1772087438534,-1070.11386951,0.00010727,2]
[406692831,1772087438544,-500.0,0.00010727,2]
[406692832,1772087438553,-500.0,0.00010727,2]
[406692833,1772087438562,-500.0,0.00010727,2]
[406692834,1772087438571,-500.0,0.00010727,2]
[406692835,1772087438581,-500.0,0.00010727,2]
[406692836,1772087438590,-500.0,0.00010727,2]
[406692837,1772087438600,-500.0,0.00010727,2]
[406692838,1772087438610,-271.91105662,0.00010727,2]
[406692839,1772087438620,-500.0,0.00010727,2]
[406692840,1772087438630,-1145.52216388,0.00010727,2]
[406692841,1772087438639,-1145.52216388,0.00010727,2]
[406692842,1772087438648,-1145.52216388,0.00010727,2]
[406692843,1772087438658,-1145.52216388,0.00010727,2]
[406692844,1772087438667,-1145.52216388,0.00010727,2]
[406692845,1772087438677,-1145.52216388,0.00010727,2]
[406692846,1772087438686,-1145.52216388,0.00010727,2]
[406692847,1772087438695,-1145.52216388,0.00010727,2]
[406692848,1772087438705,-1145.52216388,0.00010727,2]
[406692849,1772087438714,-1145.52216388,0.00010727,2]
[406692850,1772087438724,-259.96169612,0.00010727,2]
[406692851,1772087438733,-208.03686315,0.00010727,2]
[406692852,1772087438743,-488.88103758,0.00010727,2]
[406692853,1772087438752,-428.10248854,0.00010727,2]
[406692854,1772087438771,-527939.73429542,0.00010728,2]
[406692855,1772087438788,-18722.78875595,0.00010728,2]
[406692859,1772087440245,-1453337.47694863,0.00010728,2]
[406692860,1772087440255,-558.65,0.00010757,2]
[406692861,1772087440264,-500.0,0.00010785,2]
[406692862,1772087440274,-2500.0,0.00010785,2]
[406692863,1772087440283,-151.0,0.00010822,2]
[406692864,1772087440293,-151.0,0.00010822,2]
[406692865,1772087440302,-151.0,0.00010822,2]
[406692866,1772087440312,-151.0,0.00010822,2]
[406692867,1772087440322,-151.0,0.00010822,2]
[406692868,1772087440332,-151.0,0.00010822,2]
[406692870,1772087440342,-151.0,0.00010822,2]
[406692872,1772087440351,-530.7269194,0.00010822,2]
[406692874,1772087440362,-151.0,0.00010822,2]
[406692876,1772087440371,-151.0,0.00010822,2]
[406692878,1772087440380,-151.0,0.00010822,2]
[406692880,1772087440389,-151.0,0.00010822,2]
[406692882,1772087440399,-151.0,0.00010822,2]
[406692884,1772087440408,-160.66,0.00010828,2]
[406692886,1772087440418,-9999.99,0.00010828,2]
[406692888,1772087440428,-150.99,0.00010828,2]
[406692889,1772087440437,-299.99,0.00010828,2]
[406692891,1772087440449,-500.0,0.00010829,2]
[406692894,1772087440458,-500.09057479,0.00010829,2]
[406692896,1772087440467,-500.0,0.00010829,2]
[406692898,1772087440476,-500.93369528,0.00010829,2]
[406692900,1772087440485,-500.75663163,0.00010829,2]
[406692902,1772087440495,-164.76814521,0.00010829,2]
[406692903,1772087440504,-500.06072906,0.00010829,2]
[406692905,1772087440513,-500.22029316,0.00010829,2]
[406692907,1772087440523,-500.08836173,0.00010829,2]
[406692910,1772087440532,-167.01035166,0.00010829,2]
[406692911,1772087440542,-500.23170611,0.00010829,2]
[406692912,1772087440551,-500.08514565,0.00010829,2]
[406692913,1772087440560,-501.10602996,0.00010829,2]
[406692914,1772087440570,-502.12113393,0.00010829,2]
[406692915,1772087440579,-500.0,0.00010829,2]
[406692916,1772087440588,-384.74874007,0.00010829,2]
[406692917,1772087440597,-501.08752004,0.00010829,2]
[406692918,1772087440607,-240.05255331,0.00010829,2]
[406692919,1772087440617,-500.49462905,0.00010829,2]
[406692920,1772087440626,-500.0,0.00010829,2]
[406692921,1772087440635,-500.82940591,0.00010829,2]
[406692922,1772087440644,-503.65630959,0.00010829,2]
[406692923,1772087440653,-504.35563358,0.00010829,2]
[406692924,1772087440662,-500.78794822,0.00010829,2]
[406692925,1772087440671,-500.51046148,0.00010829,2]
[406692926,1772087440681,-503.76454866,0.00010829,2]
[406692927,1772087440690,-500.95701525,0.00010829,2]
[406692928,1772087440699,-165.39582799,0.00010829,2]
[406692929,1772087440708,-500.0,0.00010829,2]
[406692930,1772087440718,-500.08820078,0.00010829,2]
[406692931,1772087440728,-500.0,0.00010829,2]
[406692932,1772087440738,-500.0,0.00010829,2]
[406692933,1772087440747,-500.65480064,0.00010829,2]
[406692934,1772087440756,-500.35476921,0.00010829,2]
[406692935,1772087440765,-500.54399675,0.00010829,2]
[406692936,1772087440774,-1107.37925393,0.000109,2]
[406692937,1772087440784,-402.0,0.00010923,2]
[406692938,1772087440794,-1349.24203912,0.00010923,2]
[406692939,1772087440804,-298.0,0.00010945,2]
[406692940,1772087440813,-293.0,0.00010966,2]
[406692941,1772087440823,-1600.0,0.00010998,2]
[406692942,1772087440832,-2500.0,0.00011,2]
[406692943,1772087440842,-195.0,0.00011,2]
[406692944,1772087440851,-195.0,0.00011,2]
[406692945,1772087440861,-500.0,0.00011001,2]
[406692946,1772087440870,-250.0,0.00011028,2]
[406692947,1772087440879,-195.0,0.00011048,2]
[406692948,1772087440888,-195.0,0.00011048,2]
[406692949,1772087440898,-195.0,0.00011048,2]
[406692950,1772087440908,-420.0,0.00011067,2]
[406692951,1772087440917,-359.0,0.00011067,2]
[406692952,1772087440927,-1680.0,0.00011068,2]
[406692953,1772087440936,-896.29557626,0.00011073,2]
[406692954,1772087440946,-7266.07156587,0.00011099,2]
[406692955,1772087440956,-9162.96552411,0.00011099,2]
[406692956,1772087440970,-150.0,0.00011261,2]
[406692957,1772087440979,-500.0,0.00011275,2]
[406692958,1772087440988,-255.0,0.00011319,2]
[406692959,1772087440999,-9162.96552407,0.00011463,2]
[406692960,1772087441009,-7266.07156585,0.00011463,2]
[406692961,1772087441018,-500.0,0.00011549,2]
[406692962,1772087441027,-1107.37925392,0.00011693,2]
[406692963,1772087441038,-500.0,0.00011823,2]
[406692964,1772087441047,-152.0,0.00011925,3]
[406692965,1772087441056,-500.0,0.00012097,2]
[406692966,1772087441065,-1600.0,0.0001222,2]
[406692967,1772087441075,-9162.96552407,0.00012267,2]
[406692968,1772087441084,-7266.07156585,0.00012267,2]
[406692969,1772087441093,-500.0,0.00012371,2]
[406692970,1772087441102,-152.0,0.000126,4]
[406692971,1772087441112,-325.89,0.00012661,2]
[406692972,1772087441121,-1107.37925392,0.00012727,2]
[406692973,1772087441130,-500.0,0.0001289,2]
[406692974,1772087441140,-504.90043007,0.0001289,2]
[406692975,1772087441148,-626.24566997,0.0001289,2]
[406692976,1772087441158,-500.0,0.0001289,2]
[406692977,1772087441167,-500.0,0.0001289,2]
[406692978,1772087441177,-500.0,0.0001289,2]
[406692979,1772087441187,-226.12454466,0.0001289,2]
[406692980,1772087441196,-500.0,0.0001289,2]
[406692981,1772087441206,-173.7910009,0.0001289,2]
[406692982,1772087441215,-500.0,0.0001289,2]
[406692983,1772087441225,-500.0,0.0001289,2]
[406692984,1772087441234,-500.76827377,0.0001289,2]
[406692985,1772087441243,-500.0,0.0001289,2]
[406692986,1772087441253,-500.0,0.0001289,2]
[406692987,1772087441262,-500.0,0.0001289,2]
[406692988,1772087441272,-500.0,0.0001289,2]
[406692989,1772087441281,-500.0,0.0001289,2]
[406692990,1772087441291,-500.0,0.0001289,2]
[406692991,1772087441300,-500.0,0.0001289,2]
[406692992,1772087441309,-500.0,0.0001289,2]
[406692993,1772087441318,-150.25022043,0.0001289,2]
[406692994,1772087441328,-500.0,0.0001289,2]
[406692995,1772087441337,-500.17504357,0.0001289,2]
[406692996,1772087441346,-502.38608045,0.0001289,2]
[406692997,1772087441356,-500.0,0.0001289,2]
[406692998,1772087441366,-500.0,0.0001289,2]
[406692999,1772087441375,-500.0,0.0001289,2]
[406693000,1772087441384,-500.0,0.0001289,2]
[406693001,1772087441394,-500.0,0.0001289,2]
[406693002,1772087441403,-500.0,0.0001289,2]
[406693003,1772087441413,-500.0,0.0001289,2]
[406693004,1772087441422,-502.34389143,0.0001289,2]
[406693005,1772087441431,-500.0,0.0001289,2]
[406693006,1772087441440,-670.0,0.0001289,2]
[406693007,1772087441450,-500.93049898,0.0001289,2]
[406693008,1772087441460,-500.0,0.0001289,2]
[406693009,1772087441469,-500.0,0.0001289,2]
[406693010,1772087441478,-500.0,0.0001289,2]
[406693011,1772087441488,-500.0,0.0001289,2]
[406693012,1772087441497,-500.0,0.0001289,2]
[406693013,1772087441506,-500.0,0.0001289,2]
[406693014,1772087441516,-173.95657067,0.00013042,2]
[406693015,1772087441526,-160.0,0.00013042,2]
[406693016,1772087441536,-9162.96552407,0.00013072,2]
[406693017,1772087441547,-7266.07156585,0.00013072,2]
[406693018,1772087441556,-150.89,0.00013169,2]
[406693019,1772087441566,-152.0,0.00013275,5]
[406693020,1772087441575,-1600.0,0.00013442,2]
[406693021,1772087441584,-500.0,0.00013698,2]
[406693022,1772087441593,-500.0,0.00013698,2]
[406693023,1772087441603,-500.0,0.00013698,2]
[406693024,1772087441614,-500.0,0.00013698,2]
[406693025,1772087441623,-500.0,0.00013698,2]
[406693026,1772087441633,-500.0,0.00013698,2]
[406693027,1772087441642,-500.0,0.00013698,2]
[406693028,1772087441651,-500.0,0.00013698,2]
[406693029,1772087441660,-500.0,0.00013698,2]
[406693030,1772087441670,-500.0,0.00013698,2]
[406693031,1772087441679,-500.0,0.00013698,2]
[406693032,1772087441690,-500.0,0.00013698,2]
[406693033,1772087441699,-500.0,0.00013698,2]
[406693034,1772087441709,-269.57915282,0.00013698,2]
[406693035,1772087441719,-500.0,0.00013698,2]
[406693036,1772087441729,-500.0,0.00013698,2]
[406693037,1772087441738,-467.36158262,0.00013698,2]
[406693038,1772087441748,-500.0,0.00013698,2]
[406693039,1772087441758,-500.0,0.00013698,2]
[406693040,1772087441767,-500.0,0.00013698,2]
[406693041,1772087441777,-500.0,0.00013698,2]
[406693042,1772087441786,-500.0,0.00013698,2]
[406693043,1772087441795,-500.0,0.00013698,2]
[406693044,1772087441805,-409.20397161,0.00013698,2]
[406693045,1772087441815,-500.0,0.00013698,2]
[406693046,1772087441825,-500.0,0.00013698,2]
[406693047,1772087441835,-500.0,0.00013698,2]
[406693048,1772087441844,-500.0,0.00013698,2]
[406693049,1772087441854,-500.0,0.00013698,2]
[406693050,1772087441864,-500.0,0.00013698,2]
[406693051,1772087441873,-500.0,0.00013698,2]
[406693052,1772087441883,-500.0,0.00013698,2]
[406693053,1772087441893,-500.0,0.00013698,2]
[406693054,1772087441902,-271.25,0.00013699,2]
[406693055,1772087441912,-226.04,0.00013699,2]
[406693056,1772087441921,-188.37,0.00013699,2]
[406693057,1772087441931,-156.97,0.00013699,2]
[406693058,1772087441940,-784.9,0.00013699,2]
[406693059,1772087441949,-200.0,0.00013699,2]
[406693060,1772087441961,-1107.37925392,0.00013762,2]
[406693061,1772087442090,-9162.96552407,0.00013877,2]
[406693062,1772087442100,-7266.07156585,0.00013877,2]
[406693063,1772087442109,-152.0,0.0001395,6]
[406693064,1772087442119,-269.42049974,0.00014279,2]
[406693065,1772087442128,-224.40086961,0.000144,2]
[406693066,1772087442138,-152.0,0.00014625,7]
[406693067,1772087442147,-1600.0,0.00014664,2]
[406693068,1772087442156,-9162.96552407,0.00014681,2]
[406693069,1772087442165,-7266.07156585,0.00014681,2]
[406693070,1772087442174,-1107.37925392,0.00014796,2]
[406693071,1772087442184,-502.0,0.0001489,2]
[406693072,1772087442193,-250.0,0.00015,2]
[406693073,1772087442203,-152.0,0.000153,8]
[406693074,1772087442212,-9162.96552407,0.00015486,2]
[406693075,1772087442221,-7266.07156585,0.00015486,2]
[406693076,1772087442231,-246.13271968,0.00015695,2]
[406693077,1772087442240,-500.0,0.00015695,2]
[406693078,1772087442249,-500.0,0.00015695,2]
[406693079,1772087442259,-500.0,0.00015695,2]
[406693080,1772087442268,-500.0,0.00015695,2]
[406693081,1772087442278,-500.0,0.00015695,2]
[406693082,1772087442287,-500.0,0.00015695,2]
[406693083,1772087442297,-500.0,0.00015695,2]
[406693084,1772087442306,-500.0,0.00015695,2]
[406693085,1772087442315,-500.0,0.00015695,2]
[406693086,1772087442325,-500.0,0.00015695,2]
[406693087,1772087442334,-500.0,0.00015695,2]
[406693088,1772087442343,-1107.37925392,0.00015831,2]
[406693089,1772087442353,-23740.0,0.000159,2]
[406693090,1772087442363,-5519.0,0.00015929,2]
[406693091,1772087442372,-152.0,0.00015975,9]
[406693092,1772087442381,-283.02863357,0.0001607,2]
[406693093,1772087442390,-500.0,0.0001607,2]
[406693094,1772087442399,-500.0,0.0001607,2]
[406693095,1772087442408,-500.0,0.0001607,2]
[406693096,1772087442418,-75985.86931003,0.00016071,7]
[406693097,1772087442427,-173.14699767,0.00016071,7]
[406693098,1772087442437,-1277.0,0.00016111,2]
[406693099,1772087442446,-1211.0,0.00016111,2]
[406693100,1772087442455,-920.0,0.00016111,2]
[406693101,1772087442465,-1340.0,0.00016111,2]
[406693102,1772087442474,-2456.0,0.00016111,2]
[406693103,1772087442483,-9162.96552407,0.00016291,2]
[406693104,1772087442493,-7266.07156585,0.00016291,2]
[406693105,1772087442502,-500.0,0.00016356,2]
[406693106,1772087442511,-500.0,0.00016356,2]
[406693107,1772087442522,-700.0,0.00016356,2]
[406693108,1772087442531,-388.5,0.00016438,2]
[406693110,1772087442541,-152.0,0.0001665,10]
[406693111,1772087442550,-502.0,0.00016699,3]
[406693112,1772087442559,-3258.71343672,0.000167,3]
[406693113,1772087442574,-2272.28656328,0.000167,3]
[406693114,1772087442583,-388.5,0.00016712,2]
[406693116,1772087442592,-167.08,0.00016712,2]
[406693117,1772087442601,-1107.37925392,0.00016865,2]
[406693119,1772087442611,-223.9163473,0.00016867,2]
[406693120,1772087442620,-318.83935511,0.00016986,2]
[406693121,1772087442656,-69.66064489,0.00016986,2]
[406693122,1772087442666,-187.72990852,0.00016995,2]
[406693123,1772087442675,-348.84206137,0.00016995,2]
[406693124,1772087442927,-5983.0,0.00015383,2]
[406693125,1772087442936,-121111.12378115,0.00016071,7]
[406693134,1772087445411,-4478.00151961,0.00016071,7]
[406693135,1772087445641,-3249.85509612,0.00016071,7]
[406693136,1772087445650,-5397.81490387,0.00016995,2]
[406693137,1772087445661,-498.41720073,0.00016995,2]
[406693138,1772087445759,-399.95084313,0.00016995,2]
[406693274,1772088464009,157.96,5.283e-05,2]
[406693275,1772088464199,2.46111676,5.901e-05,2]
[406693276,1772088464226,155.49888324,5.901e-05,2]
[406693277,1772088464744,157.96,6.518e-05,2]
[406693285,1772088631776,-157.96,7.136e-05,2]
[406693286,1772088631786,-304.23413815,7.444e-05,2]
[406693287,1772088631797,-157.96,7.753e-05,2]
[406693288,1772088631807,-511.51409711,7.849e-05,2]
[406693289,1772088631820,-1350.45587795,7.849e-05,2]
[406693290,1772088631831,-193.0,7.849e-05,2]
[406693291,1772088631841,-0.77079758,8.371e-05,2]
[406693292,1772088631925,-157.18920242,8.371e-05,2]
[406693293,1772088631935,-157.96,8.988e-05,2]
[406693294,1772088631945,-150.0,9.248e-05,2]
[406693295,1772088631955,-166.29,9.369e-05,2]
[406693296,1772088631965,-462.0,9.376e-05,2]
[406693297,1772088631975,-152.0,9.394e-05,2]
[406693298,1772088631985,-157.96,9.606e-05,2]
[406693299,1772088631996,-166.0,9.649e-05,2]
[406693300,1772088632006,-381.0,9.669e-05,2]
[406693301,1772088632017,-264.37412205,9.688e-05,2]
[406693302,1772088632037,-253.91423836,9.688e-05,2]
[406693303,1772088632050,-59.71163959,9.688e-05,2]
[406693304,1772088632060,-584.99888783,9.707e-05,2]
[406693305,1772088632073,-750.74650897,9.707e-05,2]
[406693306,1772088632089,-254.2546032,9.707e-05,2]
[406693307,1772088632100,-1234.0,9.726e-05,2]
[406693308,1772088632111,-987.0,9.746e-05,2]
[406693309,1772088632123,-1003.0,9.765e-05,2]
[406693310,1772088632133,-2359.45,9.883e-05,2]
[406693311,1772088632144,-2500.0,9.94e-05,2]
[406693312,1772088632155,-166.29,9.954e-05,2]
[406693313,1772088632165,-1200.0,9.977e-05,2]
[406693314,1772088632175,-300.0,9.978e-05,2]
[406693315,1772088632186,-300.0,9.978e-05,2]
[406693316,1772088632197,-2500.0,9.979e-05,2]
[406693317,1772088632208,-2500.0,9.979e-05,2]
[406693318,1772088632218,-2500.0,9.979e-05,2]
[406693319,1772088632228,-2405.1480834,9.997e-05,2]
[406693320,1772088632239,-200.0,9.997e-05,2]
[406693321,1772088632249,-1000.0,0.00010019,2]
[406693322,1772088632260,-1852.42,0.00010045,2]
[406693323,1772088632270,-150.0,0.00010199,2]
[406693324,1772088632282,-292.5008141,0.000102,2]
[406693325,1772088632294,-231.04535953,0.00010215,2]
[406693326,1772088632305,-500.0,0.00010224,2]
[406693327,1772088632316,-500.0,0.00010224,2]
[406693329,1772088632327,-327.59202783,0.00010224,2]
[406693331,1772088632340,-561.7753064,0.00010224,2]
[406693333,1772088632350,-500.0,0.00010224,2]
[406693335,1772088632361,-500.0,0.00010224,2]
[406693337,1772088632371,-500.0,0.00010224,2]
[406693338,1772088632382,-490.33773963,0.00010224,2]
[406693339,1772088632392,-500.0,0.00010224,2]
[406693340,1772088632406,-500.0,0.00010224,2]
[406693341,1772088632418,-500.0,0.00010224,2]
[406693342,1772088632428,-500.0,0.00010224,2]
[406693343,1772088632439,-500.0,0.00010224,2]
[406693344,1772088632450,-500.0,0.00010224,2]
[406693345,1772088632460,-500.0,0.00010224,2]
[406693346,1772088632471,-500.0,0.00010224,2]
[406693347,1772088632482,-500.0,0.00010224,2]
[406693348,1772088632492,-500.0,0.00010224,2]
[406693349,1772088632501,-500.0,0.00010224,2]
[406693350,1772088632511,-500.0,0.00010224,2]
[406693351,1772088632522,-500.0,0.00010224,2]
[406693352,1772088632532,-500.0,0.00010224,2]
[406693353,1772088632542,-500.0,0.00010224,2]
[406693354,1772088632552,-500.0,0.00010224,2]
[406693356,1772088632563,-500.0,0.00010224,2]
[406693357,1772088632573,-500.0,0.00010224,2]
[406693358,1772088632583,-500.0,0.00010224,2]
[406693359,1772088632593,-500.0,0.00010224,2]
[406693360,1772088632603,-500.0,0.00010224,2]
[406693361,1772088632613,-500.0,0.00010224,2]
[406693362,1772088632623,-500.0,0.00010224,2]
[406693363,1772088632633,-500.0,0.00010224,2]
[406693364,1772088632643,-500.0,0.00010224,2]
[406693365,1772088632653,-416.76924947,0.00010224,2]
[406693366,1772088632663,-500.0,0.00010224,2]
[406693367,1772088632674,-500.0,0.00010224,2]
[406693368,1772088632684,-500.0,0.00010224,2]
[406693369,1772088632694,-500.0,0.00010224,2]
[406693370,1772088632704,-500.0,0.00010224,2]
[406693371,1772088632714,-500.0,0.00010224,2]
[406693372,1772088632724,-500.0,0.00010224,2]
[406693373,1772088632734,-500.0,0.00010224,2]
[406693374,1772088632744,-500.0,0.00010224,2]
[406693375,1772088632754,-500.0,0.00010224,2]
[406693376,1772088632765,-500.0,0.00010224,2]
[406693377,1772088632776,-500.0,0.00010224,2]
[406693378,1772088632787,-500.0,0.00010224,2]
[406693379,1772088632797,-500.0,0.00010224,2]
[406693380,1772088632807,-500.0,0.00010224,2]
[406693381,1772088632817,-500.0,0.00010224,2]
[406693382,1772088632827,-500.0,0.00010224,2]
[406693383,1772088632837,-500.0,0.00010224,2]
[406693384,1772088632848,-500.0,0.00010224,2]
[406693385,1772088632858,-500.0,0.00010224,2]
[406693386,1772088632868,-500.0,0.00010224,2]
[406693387,1772088632880,-500.0,0.00010224,2]
[406693388,1772088632890,-500.0,0.00010224,2]
[406693389,1772088632901,-398416.85134046,0.00010225,2]
[406693390,1772088632916,-158501.24303962,0.00010225,2]
[406693391,1772088632933,-239338.59458113,0.00010225,2]
[406693392,1772088632946,-321976.75307765,0.00010225,2]
[406693393,1772088632959,-1254.41808677,0.00010225,2]
[406693394,1772088632976,-834.75876838,0.00010225,2]
[406693398,1772088637790,-1969.02048803,0.00010225,2]
[406693399,1772088637806,-1050.0,0.00010225,2]
[406693400,1772088637819,-691.37446501,0.00010225,2]
[406693401,1772088637865,-2436.19507421,0.00010225,2]
[406693402,1772088638018,-1000.0,0.00010225,2]
[406693403,1772088638030,-968.12794408,0.00010225,2]
[406693404,1772088638054,-916.51199559,0.00010225,2]
[406693433,1772088640065,-2002.60738855,0.00010225,2]
[406693434,1772088640145,-723.90165115,0.00010225,2]
[406693435,1772088640156,-357067.4113354,0.00010225,2]
[406693436,1772088640196,-2094.6244665,0.00010225,2]
[406693437,1772088640431,-597.032921,0.00010225,2]
[406693495,1772088642841,-634.43867938,0.00010225,2]
[406693503,1772088645730,-9664.25934027,0.00010225,2]
[406693504,1772088645742,-396.1904003,0.00010225,2]
[406693505,1772088645757,-282792.01142012,0.00010225,2]
[406693506,1772088645996,-1980.96955014,0.00010225,2]
[406693507,1772088646070,-533.1900028,0.00010225,2]
[406693508,1772088646090,-1183.72033041,0.00010225,2]
[406693528,1772089480945,-215.83,8.127e-05,2]
[406693529,1772089480977,-1200.0,8.938e-05,2]
[406693530,1772089481005,-600.0,8.938e-05,2]
[406693531,1772089481032,-500.0,8.939e-05,2]
[406693532,1772089481060,-250.0,8.939e-05,2]
[406693533,1772089481088,-250.0,8.939e-05,2]
[406693767,1772089783225,558.65,8.893e-05,2]
[406693807,1772089831739,-309.88642084,9.21e-05,2]
[406693815,1772089831937,-3954.79357916,9.21e-05,2]
[406693816,1772089831949,-226.0,9.21e-05,2]
[406693817,1772089831958,-325.89,9.245e-05,2]
[406693818,1772089831967,-166.66,9.442e-05,2]
[406693819,1772089831977,-500.0,9.553e-05,2]
[406693820,1772089831987,-153.09966258,9.575e-05,2]
[406693821,1772089831996,-150.0,9.575e-05,2]
[406693823,1772089832006,-162.43895648,9.575e-05,2]
[406693825,1772089832015,-150.0,9.63e-05,2]
[406693827,1772089832024,-907.91665383,9.7e-05,2]
[406693829,1772089832034,-1200.0,9.749e-05,2]
[406693831,1772089832044,-1017.0,9.749e-05,2]
[406693833,1772089832053,-2500.0,9.75e-05,2]
[406693835,1772089832063,-166.66,9.754e-05,2]
[406693837,1772089832072,-1384.0,9.769e-05,2]
[406693839,1772089832082,-300.0,9.77e-05,2]
[406693841,1772089832092,-3569.21008894,9.771e-05,2]
[406693843,1772089832101,-150.0,9.78e-05,2]
[406693845,1772089832110,-173.14699767,9.781e-05,7]
[406693847,1772089832119,-75985.86931003,9.781e-05,7]
[406693849,1772089832128,-1585.0,9.798e-05,2]
[406693850,1772089832138,-668.0,9.817e-05,2]
[406693851,1772089832147,-256.0,9.822e-05,2]
[406693852,1772089832157,-1166.347,9.832e-05,2]
[406693853,1772089832166,-716.0,9.836e-05,2]
[406693854,1772089832176,-607.0,9.841e-05,2]
[406693855,1772089832186,-379.0,9.843e-05,2]
[406693856,1772089832196,-500.0,9.849e-05,2]
[406693857,1772089832205,-500.0,9.849e-05,2]
[406693858,1772089832215,-500.0,9.849e-05,2]
[406693859,1772089832224,-500.0,9.849e-05,2]
[406693860,1772089832234,-500.0,9.849e-05,2]